[Event "7th Paul Keres Memorial Festival 2026 Rapid"]
[Site "ESTONIA Resort Hotel & Spa conference center, EE"]
[Date "2026.08.02"]
[Round "9"]
[White "Shirov, Alexei"]
[Black "Povilaitis, Tomas"]
[Result "1-0"]
[Board "4"]
[TimeControl "12+3"]
[WhiteFideId "2209390"]
[BlackFideId "12811700"]
[WhiteElo "2616"]
[BlackElo "2154"]
[WhiteTitle "GM"]
[WhiteClock "0:00:17"]
[BlackClock "0:00:07"]
[Variant "Standard"]
[EndDate "2026.08.02"]
[EndTime "13:01:19"]

1. e4 {[%clk 0:12:05]}  c5 {[%clk 0:12:05]} 2. Nf3 {[%clk 0:12:06]}  Nc6 {[%clk 0:12:07]} 3. Bb5 {[%clk 0:12:08]}  d6 {[%clk 0:11:58]}
4. O-O {[%clk 0:12:03]}  Bd7 {[%clk 0:12:08]} 5. c3 {[%clk 0:11:41]}  Nf6 {[%clk 0:12:09]} 6. Re1 {[%clk 0:09:47]}  a6 {[%clk 0:12:10]}
7. Bf1 {[%clk 0:09:40]}  Bg4 {[%clk 0:12:11]} 8. d4 {[%clk 0:09:28]}  cxd4 {[%clk 0:12:03]} 9. cxd4 {[%clk 0:09:29]}  d5 {[%clk 0:12:03]}
10. e5 {[%clk 0:09:22]}  Ng8 {[%clk 0:12:05]} 11. Be3 {[%clk 0:08:47]}  e6 {[%clk 0:12:02]} 12. Nbd2 {[%clk 0:08:48]}  Bb4 {[%clk 0:11:39]}
13. Be2 {[%clk 0:08:17]}  Nge7 {[%clk 0:10:03]} 14. a3 {[%clk 0:08:19]}  Bxf3 {[%clk 0:10:05]} 15. Bxf3 {[%clk 0:08:20]}  Bxd2 {[%clk 0:10:06]}
16. Qxd2 {[%clk 0:08:19]}  Na5 {[%clk 0:09:25]} 17. Qd3 {[%clk 0:08:00]}  Qb6 {[%clk 0:09:14]} 18. Rab1 {[%clk 0:06:13]}  O-O {[%clk 0:08:39]}
19. Bg4 {[%clk 0:05:42]}  Nc4 {[%clk 0:08:24]} 20. Bc1 {[%clk 0:05:22]}  Qa5 {[%clk 0:05:56]} 21. Rd1 {[%clk 0:05:20]}  Qb5 {[%clk 0:04:24]}
22. a4 {[%clk 0:05:00]}  Qc6 {[%clk 0:04:09]} 23. b3 {[%clk 0:05:00]}  Na5 {[%clk 0:04:06]} 24. Ba3 {[%clk 0:04:38]}  Rfe8 {[%clk 0:04:08]}
25. f4 {[%clk 0:04:15]}  g6 {[%clk 0:03:50]} 26. Bh3 {[%clk 0:03:38]}  Rac8 {[%clk 0:03:53]} 27. g4 {[%clk 0:03:29]}  Qc3 {[%clk 0:03:27]}
28. Bf1 {[%clk 0:03:17]}  Qxd3 {[%clk 0:03:24]} 29. Bxd3 {[%clk 0:03:13]}  Kg7 {[%clk 0:02:44]} 30. Kf2 {[%clk 0:03:10]}  f5 {[%clk 0:02:38]}
31. exf6+ {[%clk 0:03:06]}  Kxf6 {[%clk 0:02:40]} 32. Ke3 {[%clk 0:02:55]}  g5 {[%clk 0:02:16]} 33. fxg5+ {[%clk 0:02:14]}  Kxg5 {[%clk 0:02:18]}
34. h4+ {[%clk 0:02:09]}  Kh6 {[%clk 0:01:58]} 35. Rf1 {[%clk 0:02:05]}  e5 {[%clk 0:01:40]} 36. Rf7 {[%clk 0:01:24]}  Ng6 {[%clk 0:01:27]}
37. g5+ {[%clk 0:01:13]}  Kh5 {[%clk 0:01:29]} 38. Rxh7+ {[%clk 0:00:54]}  Kg4 {[%clk 0:01:31]} 39. Bxg6 {[%clk 0:00:41]}  exd4+ {[%clk 0:01:21]}
40. Kd2 {[%clk 0:00:33]}  Re3 {[%clk 0:00:42]} 41. Rg1+ {[%clk 0:00:34]}  Kh3 {[%clk 0:00:29]} 42. Bf5+ {[%clk 0:00:35]}  Kh2 {[%clk 0:00:31]}
43. Bxc8 {[%clk 0:00:36]}  Nxb3+ {[%clk 0:00:32]} 44. Kd1 {[%clk 0:00:21]}  Kxg1 {[%clk 0:00:34]} 45. g6 {[%clk 0:00:21]}  Rd3+ {[%clk 0:00:07]}
46. Kc2 {[%clk 0:00:22]}  Rc3+ {[%clk 0:00:10]} 47. Kb2 {[%clk 0:00:21]}  Rxc8 {[%clk 0:00:09]} 48. Kxb3 {[%clk 0:00:21]}  d3 {[%clk 0:00:10]}
49. Bb4 {[%clk 0:00:18]}  Kf2 {[%clk 0:00:06]} 50. Rf7+ {[%clk 0:00:16]}  Ke2 {[%clk 0:00:07]} 51. Re7+ {[%clk 0:00:18]}  Kf3 {[%clk 0:00:07]}
52. g7 {[%clk 0:00:18]}  d4 {[%clk 0:00:06]} 53. Rf7 {[%clk 0:00:16]}  Ke2 {[%clk 0:00:07]} 54. Rf8 {[%clk 0:00:17]} 1-0

[Event "7th Paul Keres Memorial Festival 2026 Rapid"]
[Site "ESTONIA Resort Hotel & Spa conference center, EE"]
[Date "2026.08.02"]
[Round "9"]
[White "Maltsevskaya, Aleksandra"]
[Black "Jakubowski, Krzysztof"]
[Result "0-1"]
[Board "5"]
[TimeControl "12+3"]
[WhiteFideId "24174041"]
[BlackFideId "1112848"]
[WhiteElo "2369"]
[BlackElo "2365"]
[WhiteTitle "IM"]
[BlackTitle "GM"]
[WhiteClock "0:00:01"]
[BlackClock "0:00:01"]
[Variant "Standard"]
[EndDate "2026.08.02"]
[EndTime "13:01:30"]

1. e4 {[%clk 0:00:15]}  c6 {[%clk 0:00:15]} 2. d4 {[%clk 0:00:07]}  d5 {[%clk 0:00:13]} 3. e5 {[%clk 0:00:04]}  Bf5 {[%clk 0:00:10]}
4. c4 {[%clk 0:00:01]}  e6 {[%clk 0:00:01]} 5. h4 {[%clk 0:00:01]}  Bxb1 {[%clk 0:00:01]} 6. Rxb1 {[%clk 0:00:00]}  Bb4+ {[%clk 0:00:00]}
7. Bd2 {[%clk 0:00:00]}  Qa5 {[%clk 0:00:00]} 8. a3 {[%clk 0:00:00]}  Bxd2+ {[%clk 0:00:00]} 9. Qxd2 {[%clk 0:00:00]}  Qxd2+ {[%clk 0:00:00]}
10. Kxd2 {[%clk 0:00:00]}  dxc4 {[%clk 0:00:00]} 11. Bxc4 {[%clk 0:00:00]}  Nd7 {[%clk 0:00:00]} 12. Nf3 {[%clk 0:00:00]}  h5 {[%clk 0:00:00]}
13. g3 {[%clk 0:00:00]}  Ne7 {[%clk 0:00:00]} 14. Ke2 {[%clk 0:00:00]}  Nb6 {[%clk 0:00:00]} 15. Ba2 {[%clk 0:00:00]}  Nf5 {[%clk 0:00:00]}
16. Rbd1 {[%clk 0:00:00]}  a5 {[%clk 0:00:00]} 17. Rd2 {[%clk 0:00:00]}  Ke7 {[%clk 0:00:00]} 18. Rc1 {[%clk 0:00:00]}  Rhd8 {[%clk 0:00:00]}
19. Bb1 {[%clk 0:00:00]}  a4 {[%clk 0:00:00]} 20. Bxf5 {[%clk 0:00:00]}  exf5 {[%clk 0:00:00]} 21. Ne1 {[%clk 0:00:00]}  Ra5 {[%clk 0:00:00]}
22. Ng2 {[%clk 0:00:00]}  Nd5 {[%clk 0:00:00]} 23. Ne3 {[%clk 0:00:00]}  Nxe3 {[%clk 0:00:00]} 24. Kxe3 {[%clk 0:00:00]}  Rb5 {[%clk 0:00:00]}
25. Rc4 {[%clk 0:00:00]}  Ra8 {[%clk 0:00:00]} 26. Kf4 {[%clk 0:00:00]}  Ke6 {[%clk 0:00:00]} 27. f3 {[%clk 0:00:00]}  g6 {[%clk 0:00:00]}
28. g4 {[%clk 0:00:00]}  hxg4 {[%clk 0:00:00]} 29. fxg4 {[%clk 0:00:00]}  fxg4 {[%clk 0:00:00]} 30. Kxg4 {[%clk 0:00:00]}  Rb3 {[%clk 0:00:00]}
31. Rf2 {[%clk 0:00:00]}  Rd3 {[%clk 0:00:00]} 32. Rb4 {[%clk 0:00:00]}  Rb3 {[%clk 0:00:00]} 33. Rf6+ {[%clk 0:00:00]}  Ke7 {[%clk 0:00:00]}
34. Rxb3 {[%clk 0:00:00]}  axb3 {[%clk 0:00:00]} 35. Rf3 {[%clk 0:00:00]}  Ra4 {[%clk 0:00:00]} 36. Rxb3 {[%clk 0:00:00]}  Rxd4+ {[%clk 0:00:00]}
37. Kg3 {[%clk 0:00:00]}  b5 {[%clk 0:00:00]} 38. Rc3 {[%clk 0:00:00]}  b4 {[%clk 0:00:00]} 39. axb4 {[%clk 0:00:00]}  Rxb4 {[%clk 0:00:00]}
40. Rxc6 {[%clk 0:00:00]}  Rxb2 {[%clk 0:00:00]} 41. Rc5 {[%clk 0:00:00]}  Rb4 {[%clk 0:00:00]} 42. Kh3 {[%clk 0:00:00]}  Ke6 {[%clk 0:00:00]}
43. Kg3 {[%clk 0:00:00]}  Re4 {[%clk 0:00:00]} 44. h5 {[%clk 0:00:00]}  gxh5 {[%clk 0:00:00]} 45. Rc6+ {[%clk 0:00:00]}  Kxe5 {[%clk 0:00:00]}
46. Rh6 {[%clk 0:00:00]}  Rg4+ {[%clk 0:00:00]} 47. Kf3 {[%clk 0:00:00]}  Rf4+ {[%clk 0:00:00]} 48. Ke3 {[%clk 0:00:00]}  Rf5 {[%clk 0:00:00]}
49. Rh8 {[%clk 0:00:00]}  Kf6 {[%clk 0:00:00]} 50. Ke4 {[%clk 0:00:00]} 0-1

[Event "7th Paul Keres Memorial Festival 2026 Rapid"]
[Site "ESTONIA Resort Hotel & Spa conference center, EE"]
[Date "2026.08.02"]
[Round "9"]
[White "Dubrovin, Robert"]
[Black "Raag, Ardi"]
[Result "1/2-1/2"]
[Board "6"]
[TimeControl "12+3"]
[WhiteFideId "4501829"]
[BlackFideId "4509269"]
[WhiteElo "2268"]
[BlackElo "2023"]
[WhiteClock "0:00:11"]
[BlackClock "0:00:10"]
[Variant "Standard"]
[EndDate "2026.08.02"]
[EndTime "13:02:46"]

1. d4 {[%clk 0:12:03]}  d5 {[%clk 0:12:05]} 2. c4 {[%clk 0:12:04]}  e6 {[%clk 0:12:06]} 3. Nc3 {[%clk 0:12:07]}  Nf6 {[%clk 0:12:08]}
4. cxd5 {[%clk 0:12:09]}  exd5 {[%clk 0:12:10]} 5. Bg5 {[%clk 0:12:11]}  Be7 {[%clk 0:12:11]} 6. e3 {[%clk 0:12:13]}  h6 {[%clk 0:12:13]}
7. Bf4 {[%clk 0:12:13]}  O-O {[%clk 0:11:36]} 8. Bd3 {[%clk 0:12:13]}  Bd6 {[%clk 0:11:20]} 9. Bxd6 {[%clk 0:12:14]}  Qxd6 {[%clk 0:11:21]}
10. h3 {[%clk 0:12:15]}  b6 {[%clk 0:09:28]} 11. Nf3 {[%clk 0:12:13]}  Ba6 {[%clk 0:09:24]} 12. Bxa6 {[%clk 0:11:47]}  Nxa6 {[%clk 0:09:25]}
13. O-O {[%clk 0:11:46]}  c5 {[%clk 0:08:55]} 14. Qa4 {[%clk 0:11:34]}  Nc7 {[%clk 0:08:15]} 15. dxc5 {[%clk 0:11:07]}  bxc5 {[%clk 0:07:58]}
16. Rfd1 {[%clk 0:11:07]}  Qb6 {[%clk 0:06:20]} 17. b3 {[%clk 0:10:55]}  Rad8 {[%clk 0:06:03]} 18. Rac1 {[%clk 0:10:51]}  Rfe8 {[%clk 0:05:48]}
19. Rc2 {[%clk 0:09:55]}  Ne4 {[%clk 0:04:40]} 20. Nxd5 {[%clk 0:07:50]}  Nxd5 {[%clk 0:03:18]} 21. Rxd5 {[%clk 0:07:52]}  Nf6 {[%clk 0:02:52]}
22. Rxd8 {[%clk 0:06:54]}  Rxd8 {[%clk 0:02:54]} 23. Rc1 {[%clk 0:06:41]}  a5 {[%clk 0:01:43]} 24. Qc4 {[%clk 0:06:35]}  Qc7 {[%clk 0:01:03]}
25. e4 {[%clk 0:04:19]}  Qf4 {[%clk 0:00:39]} 26. e5 {[%clk 0:04:04]}  Qxc4 {[%clk 0:00:22]} 27. Rxc4 {[%clk 0:04:01]}  Nd7 {[%clk 0:00:24]}
28. Re4 {[%clk 0:02:55]}  Re8 {[%clk 0:00:17]} 29. Kf1 {[%clk 0:01:52]}  Kf8 {[%clk 0:00:20]} 30. Ke2 {[%clk 0:01:50]}  Ke7 {[%clk 0:00:22]}
31. Ra4 {[%clk 0:01:36]}  Ra8 {[%clk 0:00:21]} 32. Re4 {[%clk 0:00:57]}  Ke6 {[%clk 0:00:20]} 33. Nd2 {[%clk 0:00:57]}  Kd5 {[%clk 0:00:19]}
34. f4 {[%clk 0:00:52]}  Nb6 {[%clk 0:00:06]} 35. a4 {[%clk 0:00:37]}  Rc8 {[%clk 0:00:05]} 36. Kd3 {[%clk 0:00:27]}  Rd8 {[%clk 0:00:05]}
37. Ke3 {[%clk 0:00:16]}  Re8 {[%clk 0:00:05]} 38. Nc4 {[%clk 0:00:12]}  Nxc4+ {[%clk 0:00:07]} 39. bxc4+ {[%clk 0:00:09]}  Ke6 {[%clk 0:00:08]}
40. g4 {[%clk 0:00:09]}  g6 {[%clk 0:00:10]} 41. Kf3 {[%clk 0:00:08]}  Rb8 {[%clk 0:00:12]} 42. Re3 {[%clk 0:00:05]}  Rb4 {[%clk 0:00:14]}
43. Rd3 {[%clk 0:00:06]}  Rxc4 {[%clk 0:00:16]} 44. Rd6+ {[%clk 0:00:08]}  Ke7 {[%clk 0:00:18]} 45. Rc6 {[%clk 0:00:06]}  Rxa4 {[%clk 0:00:18]}
46. Rxc5 {[%clk 0:00:08]}  Ra3+ {[%clk 0:00:18]} 47. Ke4 {[%clk 0:00:09]}  a4 {[%clk 0:00:20]} 48. Rc7+ {[%clk 0:00:07]}  Ke8 {[%clk 0:00:18]}
49. Ra7 {[%clk 0:00:06]}  Rxh3 {[%clk 0:00:12]} 50. Rxa4 {[%clk 0:00:06]}  Rg3 {[%clk 0:00:13]} 51. Ra8+ {[%clk 0:00:07]}  Ke7 {[%clk 0:00:14]}
52. Ra7+ {[%clk 0:00:08]}  Kf8 {[%clk 0:00:15]} 53. Ra8+ {[%clk 0:00:06]}  Kg7 {[%clk 0:00:11]} 54. Ra7 {[%clk 0:00:08]}  Kf8 {[%clk 0:00:06]}
55. Ra8+ {[%clk 0:00:10]}  Ke7 {[%clk 0:00:07]} 56. Ra7+ {[%clk 0:00:11]}  Kf8 {[%clk 0:00:10]} 1/2-1/2

[Event "7th Paul Keres Memorial Festival 2026 Rapid"]
[Site "ESTONIA Resort Hotel & Spa conference center, EE"]
[Date "2026.08.02"]
[Round "9"]
[White "Grave, Jacob Templen"]
[Black "Mayorau, Mikita"]
[Result "0-1"]
[Board "7"]
[TimeControl "12+3"]
[WhiteFideId "1542656"]
[BlackFideId "13501720"]
[WhiteElo "2286"]
[BlackElo "2392"]
[WhiteTitle "FM"]
[BlackTitle "GM"]
[WhiteClock "0:00:09"]
[BlackClock "0:00:29"]
[Variant "Standard"]
[EndDate "2026.08.02"]
[EndTime "13:00:56"]

1. e4 {[%clk 0:12:04]}  d6 {[%clk 0:12:02]} 2. d4 {[%clk 0:12:04]}  g6 {[%clk 0:12:03]} 3. Nc3 {[%clk 0:12:06]}  Bg7 {[%clk 0:12:05]}
4. f4 {[%clk 0:12:07]}  Nf6 {[%clk 0:12:06]} 5. Qd2 {[%clk 0:12:09]}  O-O {[%clk 0:11:58]} 6. Nf3 {[%clk 0:12:11]}  Nbd7 {[%clk 0:11:11]}
7. e5 {[%clk 0:11:20]}  Ne8 {[%clk 0:11:09]} 8. h4 {[%clk 0:10:36]}  c5 {[%clk 0:11:10]} 9. h5 {[%clk 0:10:37]}  cxd4 {[%clk 0:11:09]}
10. Ne4 {[%clk 0:10:39]}  dxe5 {[%clk 0:05:59]} 11. hxg6 {[%clk 0:10:05]}  hxg6 {[%clk 0:05:55]} 12. fxe5 {[%clk 0:07:48]}  Nxe5 {[%clk 0:05:15]}
13. Nxe5 {[%clk 0:07:25]}  Qd5 {[%clk 0:05:17]} 14. Qf4 {[%clk 0:04:09]}  Qxe5 {[%clk 0:05:01]} 15. Qh4 {[%clk 0:03:38]}  f5 {[%clk 0:04:20]}
16. Bf4 {[%clk 0:01:06]}  Qxe4+ {[%clk 0:04:20]} 17. Kf2 {[%clk 0:01:08]}  Nf6 {[%clk 0:03:48]} 18. Bd3 {[%clk 0:00:33]}  Qd5 {[%clk 0:03:21]}
19. Rae1 {[%clk 0:00:26]}  Rf7 {[%clk 0:02:04]} 20. Kg1 {[%clk 0:00:20]}  Nh5 {[%clk 0:01:41]} 21. Rxe7 {[%clk 0:00:05]}  Rxe7 {[%clk 0:01:27]}
22. Qxe7 {[%clk 0:00:07]}  Nxf4 {[%clk 0:01:05]} 23. Qe8+ {[%clk 0:00:07]}  Bf8 {[%clk 0:01:06]} 24. Rh8+ {[%clk 0:00:06]}  Kxh8 {[%clk 0:01:09]}
25. Qxf8+ {[%clk 0:00:08]}  Kh7 {[%clk 0:01:08]} 26. Qe7+ {[%clk 0:00:08]}  Kg8 {[%clk 0:00:48]} 27. Qe8+ {[%clk 0:00:07]}  Kg7 {[%clk 0:00:50]}
28. Qe7+ {[%clk 0:00:08]}  Qf7 {[%clk 0:00:48]} 29. Qe5+ {[%clk 0:00:10]}  Qf6 {[%clk 0:00:50]} 30. Qc7+ {[%clk 0:00:08]}  Kf8 {[%clk 0:00:37]}
31. Qxf4 {[%clk 0:00:07]}  Be6 {[%clk 0:00:35]} 32. Qd6+ {[%clk 0:00:08]}  Kg7 {[%clk 0:00:36]} 33. Qc7+ {[%clk 0:00:09]}  Bf7 {[%clk 0:00:34]}
34. Qxb7 {[%clk 0:00:09]}  Re8 {[%clk 0:00:30]} 35. Qxa7 {[%clk 0:00:09]}  Qe5 {[%clk 0:00:29]} 36. Bf1 {[%clk 0:00:09]} 0-1

[Event "7th Paul Keres Memorial Festival 2026 Rapid"]
[Site "ESTONIA Resort Hotel & Spa conference center, EE"]
[Date "2026.08.02"]
[Round "9"]
[White "Kavalnis, Rytis"]
[Black "Krivonosov, Oleg"]
[Result "1/2-1/2"]
[Board "8"]
[TimeControl "12+3"]
[WhiteFideId "12841870"]
[BlackFideId "11600349"]
[WhiteElo "2092"]
[BlackElo "2358"]
[BlackTitle "IM"]
[WhiteClock "0:12:06"]
[BlackClock "0:12:09"]
[Variant "Standard"]
[EndDate "2026.08.02"]
[EndTime "12:33:17"]

1. e4 {[%clk 0:12:05]}  e5 {[%clk 0:12:06]} 2. Nf3 {[%clk 0:12:06]}  Nc6 {[%clk 0:12:07]} 3. Bc4 {[%clk 0:12:08]}  Bc5 {[%clk 0:12:07]}
4. O-O {[%clk 0:12:07]}  d6 {[%clk 0:12:09]} 5. c3 {[%clk 0:12:05]}  Nf6 {[%clk 0:12:10]} 6. d4 {[%clk 0:12:05]}  Bb6 {[%clk 0:12:11]}
7. dxe5 {[%clk 0:12:06]}  Nxe5 {[%clk 0:12:08]} 8. Nxe5 {[%clk 0:12:05]}  dxe5 {[%clk 0:12:09]} 9. Qxd8+ {[%clk 0:12:05]}  Kxd8 {[%clk 0:12:10]}
10. Nd2 {[%clk 0:12:06]}  Ke7 {[%clk 0:12:09]} 1/2-1/2

[Event "7th Paul Keres Memorial Festival 2026 Rapid"]
[Site "ESTONIA Resort Hotel & Spa conference center, EE"]
[Date "2026.08.02"]
[Round "9"]
[White "Shishkov, Andrei"]
[Black "Lazars, Krisjanis"]
[Result "1-0"]
[Board "9"]
[TimeControl "12+3"]
[WhiteFideId "4500563"]
[BlackFideId "11635452"]
[WhiteElo "2288"]
[BlackElo "2107"]
[WhiteTitle "IM"]
[BlackTitle "CM"]
[WhiteClock "0:02:56"]
[BlackClock "0:09:21"]
[Variant "Standard"]
[EndDate "2026.08.02"]
[EndTime "12:48:06"]

1. d4 {[%clk 0:12:06]}  Nf6 {[%clk 0:12:05]} 2. c4 {[%clk 0:12:08]}  e6 {[%clk 0:12:08]} 3. Nc3 {[%clk 0:12:10]}  Bb4 {[%clk 0:12:10]}
4. Qc2 {[%clk 0:12:13]}  c5 {[%clk 0:12:12]} 5. dxc5 {[%clk 0:12:15]}  O-O {[%clk 0:12:13]} 6. a3 {[%clk 0:12:16]}  Bxc5 {[%clk 0:12:10]}
7. Nf3 {[%clk 0:12:19]}  Nc6 {[%clk 0:12:12]} 8. Bg5 {[%clk 0:12:18]}  h6 {[%clk 0:12:12]} 9. Bh4 {[%clk 0:12:16]}  Be7 {[%clk 0:12:11]}
10. Rd1 {[%clk 0:12:16]}  Qc7 {[%clk 0:12:09]} 11. e4 {[%clk 0:12:08]}  d6 {[%clk 0:11:39]} 12. Be2 {[%clk 0:12:02]}  a6 {[%clk 0:11:23]}
13. O-O {[%clk 0:12:00]}  Ng4 {[%clk 0:11:20]} 14. Bg3 {[%clk 0:11:33]}  b6 {[%clk 0:11:13]} 15. Nd5 {[%clk 0:10:47]}  exd5 {[%clk 0:10:43]}
16. cxd5 {[%clk 0:10:49]}  Bb7 {[%clk 0:10:38]} 17. dxc6 {[%clk 0:10:31]}  Qxc6 {[%clk 0:10:39]} 18. Qxc6 {[%clk 0:09:56]}  Bxc6 {[%clk 0:10:39]}
19. Bxd6 {[%clk 0:09:43]}  Bxd6 {[%clk 0:10:37]} 20. Rxd6 {[%clk 0:09:44]}  Bxe4 {[%clk 0:10:39]} 21. Rxb6 {[%clk 0:09:35]}  Rab8 {[%clk 0:10:33]}
22. Rxb8 {[%clk 0:09:13]}  Rxb8 {[%clk 0:10:33]} 23. b4 {[%clk 0:09:13]}  Bxf3 {[%clk 0:10:30]} 24. gxf3 {[%clk 0:08:15]}  Ne5 {[%clk 0:10:27]}
25. f4 {[%clk 0:07:27]}  Nd7 {[%clk 0:10:11]} 26. Bxa6 {[%clk 0:07:19]}  Ra8 {[%clk 0:10:14]} 27. Bb5 {[%clk 0:07:00]}  Nb6 {[%clk 0:10:17]}
28. Ra1 {[%clk 0:06:40]}  Kf8 {[%clk 0:10:12]} 29. Kg2 {[%clk 0:06:09]}  Ra7 {[%clk 0:10:12]} 30. Bc6 {[%clk 0:05:21]}  Rc7 {[%clk 0:09:57]}
31. b5 {[%clk 0:04:54]}  Ra7 {[%clk 0:09:59]} 32. Re1 {[%clk 0:04:41]}  g6 {[%clk 0:09:50]} 33. Re8+ {[%clk 0:04:29]}  Kg7 {[%clk 0:09:52]}
34. Rb8 {[%clk 0:04:30]}  Nc4 {[%clk 0:09:45]} 35. b6 {[%clk 0:03:28]}  Rxa3 {[%clk 0:09:47]} 36. b7 {[%clk 0:03:28]}  Na5 {[%clk 0:09:39]}
37. Ra8 {[%clk 0:03:06]}  Rg3+ {[%clk 0:09:20]} 38. hxg3 {[%clk 0:03:05]}  Nxc6 {[%clk 0:09:21]} 39. Rc8 {[%clk 0:02:56]} 1-0